[Event "WYCC 2018 G14"]
[Site "Halkidiki"]
[Date "2018.10.20"]
[Round "1"]
[White "Toncheva, Nadya"]
[Black "Figueroa Bernal, Julia Dennis"]
[Result "0-1"]
[ECO "E44"]
[WhiteElo "2002"]
[BlackElo "1650"]
[Annotator "NA"]
[PlyCount "80"]
[EventDate "2018.10.20"]
[EventType "swiss"]
[EventCountry "GRE"]
[SourceTitle "playchess.com"]
[Source "ChessBase"]
[SourceQuality "1"]
[TimeControl "40/5400+30:1800+30"]

1. d4 {[%emt 0:00:00]} Nf6 {[%emt 0:00:00]} 2. c4 {[%emt 0:00:00]} e6 {[%emt 0:00:00]} 3. Nc3 {[%emt 0:00:00]} Bb4 {[%emt 0:00:14]} 4. e3 {[%emt 0:00:00]} b6 {[%emt 0:00:23]} 5. Nge2 {[%emt 0:00:11]} Bb7 {[%emt 0:00:30]} 6. a3 {[%emt 0:01:30]} Be7 {[%emt 0:00:59]} 7. Nf4 {[%emt 0:00:43]} O-O {[%emt 0:01:16]} 8. Bd3 {[%emt 0:00:12]} d6 {[%emt 0:00:49]} 9. e4 {[%emt 0:01:31]} Nbd7 {[%emt 0:03:03]} 10. Bc2 {[%emt 0:03:08]} c6 {[%emt 0:03:44]} 11. O-O {[%emt 0:01:10]} e5 {[%emt 0:02:53]} 12. Nfe2 {[%emt 0:00:34]} Re8 {[%emt 0:02:52]} 13. d5 {[%emt 0:00:28]} Bf8 {[%emt 0:07:43]} 14. Bg5 $14 {[%emt 0:06:03]} h6 {[%emt 0:01:19]} 15. Be3 {[%emt 0:01:08]} Ng4 {[%emt 0:08:31]} 16. Bd2 {[%emt 0:00:17]} g6 {[%emt 0:12:09]} 17. f3 {[%emt 0:02:26]} Ngf6 {[%emt 0:00:47]} 18. Kh1 {[%emt 0:05:04]} cxd5 {[%emt 0:05:54]} 19. exd5 {[%emt 0:00:27]} Rc8 {[%emt 0:05:16]} 20. b3 {[%emt 0:02:35]} a6 {[%emt 0:01:56]} 21. a4 {[%emt 0:03:12]} Bg7 {[%emt 0:05:37]} 22. Ng3 {[%emt 0:03:26]} Kh8 {[%emt 0:02:42]} 23. Nge4 {[%emt 0:08:09]} Qe7 {[%emt 0:09:31]} 24. Qc1 {[%emt 0:09:31]} Ng8 {[%emt 0:01:14]} 25. Qa3 {[%emt 0:01:28]} Nc5 {[%emt 0:01:17]} 26. a5 {[%emt 0:01:43]} f5 {[%emt 0:00:19]} 27. Nf2 {[%emt 0:03:35]} bxa5 {[%emt 0:03:58]} 28. Qxa5 {[%emt 0:01:03]} Qd8 {[%emt 0:02:01]} 29. Qa2 {[%emt 0:09:17]} Ne7 {[%emt 0:02:17]} 30. b4 {[%emt 0:09:57]} Nd7 {[%emt 0:00:06]} 31. Bd3 {[%emt 0:01:22]} Nb6 {[%emt 0:01:27]} 32. Qb3 {[%emt 0:01:02]} Qc7 {[%emt 0:01:46]} 33. c5 {[%emt 0:10:18]} dxc5 {[%emt 0:05:36]} 34. bxc5 {[%emt 0:00:49]} Nbxd5 {[%emt 0:00:20]} 35. Bxa6 {[%emt 0:02:03]} Bxa6 {[%emt 0:00:25]} 36. Nxd5 {[%emt 0:00:20]} Nxd5 {[%emt 0:03:27]} 37. Rxa6 {[%emt 0:00:08]} Qxc5 {[%emt 0:00:42]} 38. Ra5 {[%emt 0:00:19]} Qb6 {[%emt 0:02:08]} 39. Qxd5 {[%emt 0:01:09]} Red8 {[%emt 0:00:10]} 40. Qa2 {[%emt 0:00:00]} Qxf2 {[%emt 0:00:00]} 0-1

[Event "WYCC 2018 G14"]
[Site "Halkidiki"]
[Date "2018.10.20"]
[Round "1"]
[White "Guillo Longares, Cecilia"]
[Black "Yellamraju, Ambica"]
[Result "1/2-1/2"]
[ECO "D59"]
[WhiteElo "1998"]
[BlackElo "1647"]
[Annotator "NA RC"]
[PlyCount "182"]
[EventDate "2018.10.20"]
[EventType "swiss"]
[EventCountry "GRE"]
[SourceTitle "playchess.com"]
[Source "ChessBase"]
[SourceQuality "1"]
[TimeControl "40/5400+30:1800+30"]

1. d4 {[%emt 0:00:00]} d5 {[%emt 0:00:00]} 2. c4 {[%emt 0:00:00]} e6 {[%emt 0:00:00]} 3. Nc3 {[%emt 0:00:00]} Be7 {[%emt 0:00:00]} 4. Nf3 {[%emt 0:00:00]} Nf6 {[%emt 0:00:12]} 5. Bg5 {[%emt 0:00:12]} O-O {[%emt 0:00:37]} 6. e3 {[%emt 0:00:08]} h6 {[%emt 0:00:13]} 7. Bh4 {[%emt 0:00:06]} b6 {[%emt 0:00:48]} 8. cxd5 {[%emt 0:00:09]} Nxd5 {[%emt 0:01:04]} 9. Nxd5 {[%emt 0:01:03] D59: Queen's Gambit Declined: Tartakower Defence: Main line (8 cxd5 Nxd5)} (9. Bxe7 Qxe7 10. Rc1 Bb7 11. Be2 Rc8 12. O-O Nxc3 13. Rxc3 Nd7 14. Qa4 c5 15. Rfc1 cxd4 16. Rxc8+ Rxc8 17. Rxc8+ Bxc8 18. Nxd4 Nc5 19. Qa3 a5 20. Nb3 e5 21. Nxc5 Qxc5 22. Qxc5 bxc5 {½-½ (31) Akobian,V (2640)-Ganguly,S (2657) Saint Louis 2018}) 9... Bxh4 {[%emt 0:05:50]} 10. Nxh4 {[%emt 0:00:35]} Qxd5 {[%emt 0:01:51]} 11. Qd2 $146 {[%emt 0:02:39]} ({Predecessor:} 11. Be2 Qa5+ 12. Qd2 Qg5 13. Nf3 Qxg2 14. Rg1 Qh3 15. Rg3 Qf5 16. Bd3 Qf6 {1-0 (33) Magat,J (2066)-Gazik,R (2203) Slovakia 2009}) 11... Bb7 {[%emt 0:03:46]} 12. Be2 {[%emt 0:00:40]} Qd8 {[%emt 0:02:10]} 13. Bf3 {[%emt 0:01:22]} Bxf3 {[%emt 0:11:55]} 14. Nxf3 {[%emt 0:02:21]} Qd5 {[%emt 0:02:28]} 15. Rc1 {[%emt 0:01:30]} Rc8 {[%emt 0:03:46]} 16. b3 {[%emt 0:03:08]} Nd7 {[%emt 0:03:25]} 17. O-O {[%emt 0:06:09]} c5 {[%emt 0:03:25]} 18. Rc4 {[%emt 0:02:09]} b5 {[%emt 0:02:59]} 19. Rc2 {[%emt 0:00:06]} c4 {[%emt 0:09:20]} 20. Rfc1 {[%emt 0:00:35]} Nb6 {[%emt 0:00:57]} 21. bxc4 {[%emt 0:02:53]} Nxc4 {[%emt 0:02:25]} 22. Qe2 {[%emt 0:01:32]} Nd6 {[%emt 0:08:42]} 23. Rc5 {[%emt 0:03:51]} Rxc5 {[%emt 0:00:58]} 24. Rxc5 {[%emt 0:00:05]} Qb7 {[%emt 0:01:38]} 25. Ne5 {[%emt 0:05:34]} a6 {[%emt 0:05:56]} 26. Qc2 {[%emt 0:03:53]} Rc8 {[%emt 0:01:28]} 27. Nc6 {[%emt 0:01:04]} Kh8 {[%emt 0:02:35]} 28. h3 {[%emt 0:03:53]} f6 {[%emt 0:15:36]} 29. Ne7 {[%emt 0:17:53]} Rxc5 {[%emt 0:01:50]} 30. Ng6+ {[%emt 0:00:12]} Kg8 {[%emt 0:01:18]} 31. Qxc5 {[%emt 0:00:25]} Qd7 {[%emt 0:03:02]} 32. Qb6 {[%emt 0:00:58]} Kf7 {[%emt 0:01:07]} 33. Nf4 {[%emt 0:00:50]} g5 {[%emt 0:02:27]} 34. Nd3 {[%emt 0:00:33]} Ne8 {[%emt 0:00:59]} 35. Qxa6 {[%emt 0:02:03]} Nc7 {[%emt 0:00:11]} 36. Qb7 {[%emt 0:00:42]} Qd6 {[%emt 0:01:39]} 37. Nc5 {[%emt 0:01:57]} Kg6 {[%emt 0:00:33]} 38. Qc8 {[%emt 0:02:37]} Qe7 {[%emt 0:00:58]} 39. Nd7 {[%emt 0:09:09]} Ne8 {[%emt 0:00:29]} 40. e4 {[%emt 0:00:00]} Kf7 {[%emt 0:00:00]} 41. Qc6 {[%emt 0:08:50]} Qb4 {[%emt 0:01:21]} 42. Nc5 {[%emt 0:01:58]} Ng7 {[%emt 0:01:49]} 43. Qd7+ {[%emt 0:03:38]} Kg6 {[%emt 0:00:22]} 44. g3 {[%emt 0:07:20]} e5 {[%emt 0:02:24]} 45. Kg2 {[%emt 0:10:59]} exd4 {[%emt 0:01:23]} 46. Nb3 {[%emt 0:03:51]} Qa4 {[%emt 0:02:42]} 47. Nxd4 {[%emt 0:00:46]} Qxa2 {[%emt 0:00:18]} 48. Nf5 {[%emt 0:01:31]} Qf7 {[%emt 0:03:10]} 49. Qxb5 {[%emt 0:03:00]} Qe6 {[%emt 0:01:33]} 50. Qd5 {[%emt 0:01:28]} Qxd5 {[%emt 0:01:12]} 51. Ne7+ {[%emt 0:00:06]} Kf7 {[%emt 0:00:04]} 52. Nxd5 {[%emt 0:00:05]} Ke6 {[%emt 0:00:18]} 53. Ne3 {[%emt 0:01:06]} Ke5 {[%emt 0:00:49]} 54. f3 {[%emt 0:03:23]} h5 {[%emt 0:01:29]} 55. Nc4+ {[%emt 0:01:38]} Kd4 {[%emt 0:00:32]} 56. Nb6 {[%emt 0:01:11]} f5 {[%emt 0:00:53]} 57. exf5 {[%emt 0:00:54]} Nxf5 {[%emt 0:00:03]} 58. Nd7 {[%emt 0:00:08]} Ke3 {[%emt 0:01:58]} 59. g4 {[%emt 0:09:42]} hxg4 {[%emt 0:02:38]} 60. fxg4 {[%emt 0:00:09]} Ng7 {[%emt 0:00:34]} 61. Nf8 {[%emt 0:01:33]} Ke2 {[%emt 0:00:24]} 62. Kg3 {[%emt 0:00:21]} Ke3 {[%emt 0:00:16]} 63. Nh7 {[%emt 0:00:56]} Ne6 {[%emt 0:00:17]} 64. Nf6 {[%emt 0:00:59]} Nf4 {[%emt 0:00:47]} 65. Nh5 {[%emt 0:02:14]} Ne6 {[%emt 0:00:57]} 66. Nf6 {[%emt 0:01:28]} Nf4 {[%emt 0:00:04]} 67. Nd7 {[%emt 0:00:15]} Ne2+ {[%emt 0:01:51]} 68. Kg2 {[%emt 0:00:55]} Nf4+ {[%emt 0:00:11]} 69. Kh2 {[%emt 0:00:01]} Ne6 {[%emt 0:00:23]} 70. Ne5 {[%emt 0:00:20]} Kf4 {[%emt 0:00:31]} 71. Ng6+ {[%emt 0:00:07]} Kf3 {[%emt 0:00:35]} 72. Ne7 {[%emt 0:01:03]} Kf2 {[%emt 0:01:10]} 73. Nf5 {[%emt 0:00:18]} Kf3 {[%emt 0:00:22]} 74. Nd6 {[%emt 0:00:28]} Kf2 {[%emt 0:00:41]} 75. Nc4 {[%emt 0:00:03]} Kf3 {[%emt 0:00:19]} 76. Nd2+ {[%emt 0:00:52]} Kf2 {[%emt 0:00:17]} 77. h4 {[%emt 0:01:23]} gxh4 {[%emt 0:00:53]} 78. Kh3 {[%emt 0:00:02]} Ke3 {[%emt 0:00:45]} 79. Nc4+ {[%emt 0:00:13]} Kd4 {[%emt 0:00:27]} 80. Nd6 {[%emt 0:00:18]} Ke5 {[%emt 0:00:22]} 81. Ne8 {[%emt 0:00:42]} Nf8 {[%emt 0:02:04]} 82. Kxh4 {[%emt 0:00:07]} Ke6 {[%emt 0:00:12]} 83. Kh5 {[%emt 0:00:34]} Kf7 {[%emt 0:00:14]} 84. Nd6+ {[%emt 0:00:16]} Kg7 {[%emt 0:00:20]} 85. Nf5+ {[%emt 0:00:03]} Kf6 {[%emt 0:00:15]} 86. Kh6 {[%emt 0:00:26]} Ne6 $11 {[%emt 0:00:23]} 87. Nd6 {[%emt 0:00:57]} Ke5 {[%emt 0:01:29]} 88. Nc4+ {[%emt 0:00:37]} Kf4 {[%emt 0:00:24]} 89. Kh5 {[%emt 0:00:07]} Ng7+ {[%emt 0:00:23]} 90. Kh4 {[%emt 0:00:11]} Nf5+ {[%emt 0:00:52]} 91. Kh3 {[%emt 0:00:19]} Nh6 {[%emt 0:00:09]} 1/2-1/2

[Event "WYCC 2018 G14"]
[Site "Halkidiki"]
[Date "2018.10.20"]
[Round "1"]
[White "Eizaguerri Floris, Maria"]
[Black "Sosovickova, Jana"]
[Result "1-0"]
[ECO "C54"]
[WhiteElo "1987"]
[BlackElo "1627"]
[Annotator "NA"]
[PlyCount "53"]
[EventDate "2018.10.20"]
[EventType "swiss"]
[EventCountry "GRE"]
[SourceTitle "playchess.com"]
[Source "ChessBase"]
[SourceQuality "1"]
[TimeControl "40/5400+30:1800+30"]

1. e4 {[%emt 0:00:00]} e5 {[%emt 0:00:00]} 2. Nf3 {[%emt 0:00:00]} Nc6 {[%emt 0:00:00]} 3. Bc4 {[%emt 0:00:00]} Bc5 {[%emt 0:00:05]} 4. c3 {[%emt 0:00:00]} Nf6 {[%emt 0:00:23]} 5. d3 {[%emt 0:00:01]} a6 {[%emt 0:00:54]} 6. O-O {[%emt 0:01:58]} O-O {[%emt 0:01:34]} 7. Bb3 {[%emt 0:00:47]} h6 {[%emt 0:01:48]} 8. Nbd2 {[%emt 0:00:37]} Ba7 {[%emt 0:01:06]} 9. Re1 {[%emt 0:02:50]} d6 {[%emt 0:01:51]} 10. Nf1 {[%emt 0:00:42]} Be6 {[%emt 0:01:56]} 11. Ng3 {[%emt 0:03:10]} Qd7 {[%emt 0:02:41]} 12. Bc2 {[%emt 0:02:56]} Ne7 {[%emt 0:07:17]} 13. d4 {[%emt 0:08:14]} Ng6 {[%emt 0:05:14]} 14. Nf5 {[%emt 0:06:00]} exd4 {[%emt 0:08:56]} 15. N3xd4 {[%emt 0:00:34]} Bxf5 {[%emt 0:07:33]} 16. Nxf5 {[%emt 0:00:26]} Ne7 {[%emt 0:02:07]} 17. e5 {[%emt 0:11:00]} Ne8 {[%emt 0:12:27]} 18. Qg4 {[%emt 0:04:13]} Nxf5 {[%emt 0:03:55]} 19. Bxf5 {[%emt 0:00:11]} Qe7 {[%emt 0:04:37]} 20. Bxh6 {[%emt 0:00:57]} dxe5 {[%emt 0:01:38]} 21. Bg5 {[%emt 0:09:46]} Qd6 {[%emt 0:12:43]} 22. Qh4 {[%emt 0:03:39]} g6 {[%emt 0:01:10]} 23. Be7 {[%emt 0:00:45]} Qb6 {[%emt 0:03:04]} 24. Bxf8 {[%emt 0:01:27]} gxf5 {[%emt 0:01:29]} 25. Ba3 {[%emt 0:06:17]} e4 {[%emt 0:03:38]} 26. Re3 {[%emt 0:04:38]} Qf6 {[%emt 0:02:56]} 27. Rg3+ {[%emt 0:00:28]} 1-0

[Event "WYCC 2018 G14"]
[Site "Halkidiki"]
[Date "2018.10.20"]
[Round "1"]
[White "Stepanyan, Eva"]
[Black "Arauco Celestino, Arianna Sofia"]
[Result "1-0"]
[ECO "C10"]
[WhiteElo "1981"]
[BlackElo "1610"]
[Annotator "NA"]
[PlyCount "67"]
[EventDate "2018.10.20"]
[EventType "swiss"]
[EventCountry "GRE"]
[SourceTitle "playchess.com"]
[Source "ChessBase"]
[SourceQuality "1"]
[TimeControl "40/5400+30:1800+30"]

1. e4 {[%emt 0:00:00]} e6 {[%emt 0:00:00]} 2. d4 {[%emt 0:00:14]} d5 {[%emt 0:00:00]} 3. Nd2 {[%emt 0:00:15]} dxe4 {[%emt 0:00:03]} 4. Nxe4 {[%emt 0:00:06]} Bd7 {[%emt 0:00:10]} 5. Nf3 {[%emt 0:05:39]} Bc6 {[%emt 0:00:08]} 6. Ng3 {[%emt 0:06:44]} Nd7 {[%emt 0:02:24]} 7. Bd3 {[%emt 0:05:13]} Ngf6 {[%emt 0:02:55]} 8. Qe2 {[%emt 0:04:19]} Be7 {[%emt 0:02:42]} 9. Bb5 {[%emt 0:04:37]} Bxf3 {[%emt 0:02:25]} 10. Qxf3 {[%emt 0:00:14]} c6 {[%emt 0:00:18]} 11. Bd3 {[%emt 0:02:59]} Qb6 {[%emt 0:03:41]} 12. c3 {[%emt 0:04:56]} O-O {[%emt 0:09:49]} 13. O-O {[%emt 0:02:24]} Rfd8 {[%emt 0:07:22]} 14. Qe2 {[%emt 0:03:22]} c5 {[%emt 0:01:18]} 15. Be3 {[%emt 0:05:41]} cxd4 {[%emt 0:09:47]} 16. Bxd4 {[%emt 0:03:06]} Bc5 {[%emt 0:01:07]} 17. Bxc5 {[%emt 0:06:27]} Nxc5 {[%emt 0:04:00]} 18. Bc2 {[%emt 0:00:16]} Kh8 {[%emt 0:07:36]} 19. b4 {[%emt 0:04:15]} Ncd7 {[%emt 0:01:06]} 20. a3 {[%emt 0:05:51]} a5 {[%emt 0:05:28]} 21. Rfb1 {[%emt 0:03:42]} Qc7 {[%emt 0:05:14]} 22. c4 {[%emt 0:02:52]} Nb6 {[%emt 0:01:15]} 23. c5 {[%emt 0:03:20]} Nbd5 {[%emt 0:00:25]} 24. Ne4 {[%emt 0:03:12]} Nxe4 {[%emt 0:06:12]} 25. Qxe4 {[%emt 0:00:11]} Nf6 {[%emt 0:00:03]} 26. Qe2 {[%emt 0:05:50]} Rd4 {[%emt 0:02:32]} 27. Rd1 {[%emt 0:01:57]} Rxd1+ {[%emt 0:14:11]} 28. Rxd1 {[%emt 0:00:15]} axb4 {[%emt 0:00:07]} 29. axb4 {[%emt 0:00:10]} Nd5 {[%emt 0:00:10]} 30. Qe4 {[%emt 0:01:59]} g6 {[%emt 0:06:11]} 31. Bb3 {[%emt 0:02:40]} Qc6 {[%emt 0:03:25]} 32. h3 {[%emt 0:01:23]} Rd8 {[%emt 0:01:59]} 33. h4 {[%emt 0:05:44]} Kg7 {[%emt 0:01:46]} 34. h5 {[%emt 0:01:19]} 1-0

[Event "WYCC 2018 G14"]
[Site "Halkidiki"]
[Date "2018.10.20"]
[Round "1"]
[White "Ziegenfuss, Antonia"]
[Black "Tryggestad, Linnea Garberg"]
[Result "1-0"]
[ECO "D31"]
[WhiteElo "1969"]
[BlackElo "1604"]
[Annotator "NA"]
[PlyCount "77"]
[EventDate "2018.10.20"]
[EventType "swiss"]
[EventCountry "GRE"]
[SourceTitle "playchess.com"]
[Source "ChessBase"]
[SourceQuality "1"]
[TimeControl "40/5400+30:1800+30"]

1. d4 {[%emt 0:00:00]} d5 {[%emt 0:00:00]} 2. c4 {[%emt 0:00:00]} c6 {[%emt 0:00:00]} 3. Nc3 {[%emt 0:00:00]} e6 {[%emt 0:01:10]} 4. e3 {[%emt 0:02:05]} Nf6 {[%emt 0:01:50]} 5. Bd3 {[%emt 0:05:48]} Be7 {[%emt 0:08:57]} 6. Nge2 {[%emt 0:02:08]} Nbd7 {[%emt 0:04:59]} 7. O-O {[%emt 0:04:01]} a6 {[%emt 0:04:50]} 8. a4 {[%emt 0:19:52]} dxc4 {[%emt 0:07:49]} 9. Bxc4 {[%emt 0:02:09]} b6 {[%emt 0:02:59]} 10. f3 {[%emt 0:12:59]} Qc7 {[%emt 0:04:05]} 11. e4 {[%emt 0:04:29]} Bb7 {[%emt 0:06:51]} 12. Bf4 {[%emt 0:06:04]} e5 {[%emt 0:12:27]} 13. Be3 {[%emt 0:05:33]} Rd8 {[%emt 0:03:37]} 14. Qc2 {[%emt 0:05:57]} O-O {[%emt 0:10:08]} 15. h3 {[%emt 0:07:57]} exd4 {[%emt 0:02:04]} 16. Nxd4 {[%emt 0:01:40]} Bc5 {[%emt 0:03:52]} 17. Nf5 {[%emt 0:01:53]} Bxe3+ {[%emt 0:01:18]} 18. Nxe3 {[%emt 0:00:09]} b5 {[%emt 0:01:06]} 19. Ba2 {[%emt 0:03:02]} Qb6 {[%emt 0:04:29]} 20. Qf2 {[%emt 0:02:45]} Nc5 {[%emt 0:03:02]} 21. a5 {[%emt 0:02:35]} Qc7 {[%emt 0:02:40]} 22. Qc2 {[%emt 0:03:06]} Nd3 {[%emt 0:02:15]} 23. Ncd5 {[%emt 0:03:00]} Nxd5 {[%emt 0:02:11]} 24. Nxd5 {[%emt 0:00:46]} Qe5 {[%emt 0:01:31]} 25. Qxd3 {[%emt 0:01:42]} cxd5 {[%emt 0:00:27]} 26. exd5 {[%emt 0:01:15]} Bxd5 {[%emt 0:00:55]} 27. Rfd1 {[%emt 0:01:24]} Bc6 {[%emt 0:05:11]} 28. Qxd8 {[%emt 0:00:33]} Rxd8 {[%emt 0:01:19]} 29. Rxd8+ {[%emt 0:00:04]} Be8 {[%emt 0:00:07]} 30. Kf1 {[%emt 0:00:58]} g6 {[%emt 0:00:46]} 31. Re1 {[%emt 0:00:29]} Qxb2 {[%emt 0:00:35]} 32. Rdxe8+ {[%emt 0:00:33]} Kg7 {[%emt 0:00:19]} 33. R8e2 {[%emt 0:00:15]} Qb4 {[%emt 0:00:34]} 34. Re7 {[%emt 0:00:37]} Qxa5 {[%emt 0:00:26]} 35. Bxf7 {[%emt 0:00:40]} Kh6 {[%emt 0:01:26]} 36. Bg8 {[%emt 0:00:20]} b4 {[%emt 0:00:57]} 37. h4 {[%emt 0:00:42]} Qb5+ {[%emt 0:00:15]} 38. Kg1 {[%emt 0:00:27]} Qc5+ {[%emt 0:00:48]} 39. Kh1 {[%emt 0:00:08]} 1-0

[Event "WYCC 2018 G14"]
[Site "Halkidiki"]
[Date "2018.10.20"]
[Round "1"]
[White "Randrianarimanana, Alicia"]
[Black "Yan, Ashley Mei"]
[Result "1-0"]
[ECO "D05"]
[WhiteElo "1947"]
[BlackElo "1565"]
[Annotator "NA"]
[PlyCount "125"]
[EventDate "2018.10.20"]
[EventType "swiss"]
[EventCountry "GRE"]
[SourceTitle "playchess.com"]
[Source "ChessBase"]
[SourceQuality "1"]
[TimeControl "40/5400+30:1800+30"]

1. d4 {[%emt 0:00:00]} d5 {[%emt 0:00:00]} 2. Nf3 {[%emt 0:00:00]} Nf6 {[%emt 0:00:00]} 3. e3 {[%emt 0:00:00]} e6 {[%emt 0:00:00]} 4. Bd3 {[%emt 0:00:00]} Be7 {[%emt 0:00:11]} 5. O-O {[%emt 0:01:04]} O-O {[%emt 0:00:18]} 6. b3 {[%emt 0:00:18]} c5 {[%emt 0:04:12]} 7. Bb2 {[%emt 0:00:17]} Nc6 {[%emt 0:01:05]} 8. Ne5 {[%emt 0:06:45]} cxd4 {[%emt 0:07:51]} 9. exd4 {[%emt 0:00:11]} Nb4 {[%emt 0:07:44]} 10. Be2 {[%emt 0:00:13]} Qc7 {[%emt 0:02:11]} 11. c3 {[%emt 0:28:34]} Nc6 {[%emt 0:01:40]} 12. f4 {[%emt 0:06:02]} b6 {[%emt 0:03:37]} 13. Nd2 {[%emt 0:00:37]} Bb7 {[%emt 0:01:39]} 14. Bd3 {[%emt 0:01:42]} Rac8 {[%emt 0:04:17]} 15. Qe2 {[%emt 0:00:41]} Bd6 {[%emt 0:16:40]} 16. Rae1 {[%emt 0:00:19]} Qe7 {[%emt 0:06:21]} 17. Rf3 {[%emt 0:00:38]} Rfe8 {[%emt 0:10:49]} 18. Rh3 {[%emt 0:00:59]} g6 {[%emt 0:07:02]} 19. Ndf3 {[%emt 0:31:28]} Nh5 {[%emt 0:07:14]} 20. Rxh5 {[%emt 0:15:24]} gxh5 {[%emt 0:01:54]} 21. Ng5 {[%emt 0:00:16]} Nxe5 {[%emt 0:11:06]} 22. dxe5 {[%emt 0:02:46]} Bc5+ {[%emt 0:01:36]} 23. Kh1 {[%emt 0:00:10]} Qf8 {[%emt 0:01:00]} 24. Nxh7 {[%emt 0:00:24]} Qh6 {[%emt 0:01:00]} 25. Nf6+ {[%emt 0:00:10]} Kh8 {[%emt 0:00:48]} 26. Nxe8 {[%emt 0:01:55]} Rxe8 {[%emt 0:00:02]} 27. Bc1 {[%emt 0:00:24]} Be7 {[%emt 0:00:58]} 28. Be3 {[%emt 0:01:24]} h4 {[%emt 0:00:15]} 29. Qd2 {[%emt 0:00:16]} Rg8 {[%emt 0:00:20]} 30. Bd4 {[%emt 0:00:44]} Bc5 {[%emt 0:00:28]} 31. Qf2 {[%emt 0:00:13]} Bxd4 {[%emt 0:00:13]} 32. cxd4 {[%emt 0:00:04]} Rg4 {[%emt 0:00:18]} 33. Rf1 {[%emt 0:00:15]} Qf8 {[%emt 0:01:38]} 34. Be2 {[%emt 0:00:21]} Rg7 {[%emt 0:00:37]} 35. Qxh4+ {[%emt 0:00:06]} Rh7 {[%emt 0:00:30]} 36. Qf6+ {[%emt 0:00:09]} Qg7 {[%emt 0:01:18]} 37. Qxg7+ {[%emt 0:00:16]} Kxg7 {[%emt 0:00:16]} 38. Bd3 {[%emt 0:00:19]} Rh8 {[%emt 0:00:19]} 39. Rc1 {[%emt 0:00:04]} Rc8 {[%emt 0:01:00]} 40. Rxc8 {[%emt 0:00:00]} Bxc8 {[%emt 0:00:00]} 41. Kg1 {[%emt 0:00:04]} f6 {[%emt 0:01:00]} 42. Kf2 {[%emt 0:00:08]} f5 {[%emt 0:00:13]} 43. Kg3 {[%emt 0:00:13]} Kh6 {[%emt 0:00:42]} 44. Kh4 {[%emt 0:00:04]} Bd7 {[%emt 0:00:36]} 45. h3 {[%emt 0:00:04]} Kg6 {[%emt 0:04:31]} 46. g4 {[%emt 0:00:13]} Kh6 {[%emt 0:01:45]} 47. g5+ {[%emt 0:00:16]} Kg6 {[%emt 0:00:47]} 48. Kg3 {[%emt 0:00:40]} Be8 {[%emt 0:01:30]} 49. Be2 {[%emt 0:00:08]} Kh7 {[%emt 0:05:01]} 50. Kh4 {[%emt 0:01:43]} a5 {[%emt 0:02:39]} 51. Bh5 {[%emt 0:00:16]} Bb5 {[%emt 0:01:35]} 52. Bf7 {[%emt 0:00:07]} Bd7 {[%emt 0:00:29]} 53. g6+ {[%emt 0:00:13]} Kh6 {[%emt 0:01:28]} 54. a3 {[%emt 0:00:41]} b5 {[%emt 0:09:49]} 55. b4 {[%emt 0:04:13]} a4 {[%emt 0:00:38]} 56. Kg3 {[%emt 0:00:08]} Kg7 {[%emt 0:00:21]} 57. h4 {[%emt 0:00:11]} Kh6 {[%emt 0:00:28]} 58. h5 {[%emt 0:00:15]} Kg7 {[%emt 0:01:19]} 59. Kh3 {[%emt 0:00:04]} Kh6 {[%emt 0:00:47]} 60. Kh4 {[%emt 0:00:04]} Kg7 {[%emt 0:01:13]} 61. Kg5 {[%emt 0:00:05]} Kf8 {[%emt 0:00:38]} 62. Kf6 {[%emt 0:00:49]} Be8 {[%emt 0:00:24]} 63. g7# {[%emt 0:00:08]} 1-0

[Event "WYCC 2018 G14"]
[Site "Halkidiki"]
[Date "2018.10.20"]
[Round "1"]
[White "Zhu, Evelyn"]
[Black "Pandey, Divya"]
[Result "1-0"]
[ECO "D48"]
[WhiteElo "1926"]
[BlackElo "1523"]
[Annotator "NA"]
[PlyCount "127"]
[EventDate "2018.10.20"]
[EventType "swiss"]
[EventCountry "GRE"]
[SourceTitle "playchess.com"]
[Source "ChessBase"]
[SourceQuality "1"]
[TimeControl "40/5400+30:1800+30"]

1. d4 {[%emt 0:00:00]} d5 {[%emt 0:00:00]} 2. c4 {[%emt 0:00:00]} c6 {[%emt 0:00:00]} 3. Nc3 {[%emt 0:00:00]} Nf6 {[%emt 0:00:00]} 4. e3 {[%emt 0:00:00]} e6 {[%emt 0:00:15]} 5. Nf3 {[%emt 0:00:03]} Nbd7 {[%emt 0:00:50]} 6. Bd3 {[%emt 0:01:24]} dxc4 {[%emt 0:03:57]} 7. Bxc4 {[%emt 0:00:16]} b5 {[%emt 0:00:06]} 8. Bd3 {[%emt 0:00:28]} a6 {[%emt 0:00:06]} 9. a4 {[%emt 0:01:08]} b4 {[%emt 0:02:56]} 10. Ne4 {[%emt 0:01:36]} a5 {[%emt 0:01:38]} 11. O-O {[%emt 0:02:03]} Ba6 {[%emt 0:01:05]} 12. Nxf6+ {[%emt 0:03:06]} Nxf6 {[%emt 0:02:38]} 13. Bxa6 {[%emt 0:04:55]} Rxa6 {[%emt 0:00:40]} 14. Qe2 {[%emt 0:01:15]} Rb6 {[%emt 0:02:34]} 15. e4 {[%emt 0:02:45]} Be7 {[%emt 0:03:16]} 16. Rd1 {[%emt 0:02:21]} O-O {[%emt 0:01:56]} 17. Ne5 {[%emt 0:05:08]} Qa8 {[%emt 0:05:30]} 18. Bg5 {[%emt 0:07:38]} Qb7 {[%emt 0:11:40]} 19. Rac1 {[%emt 0:05:07]} Ra6 {[%emt 0:04:02]} 20. Nd3 {[%emt 0:05:20]} Ra7 {[%emt 0:08:16]} 21. Ne5 {[%emt 0:11:44]} Rc8 {[%emt 0:04:25]} 22. Qf3 {[%emt 0:03:21]} Bd8 {[%emt 0:05:00]} 23. Nd3 {[%emt 0:06:00]} Ne8 {[%emt 0:02:22]} 24. Nc5 {[%emt 0:02:12]} Qa8 {[%emt 0:01:36]} 25. Bf4 {[%emt 0:03:53]} Bc7 {[%emt 0:03:30]} 26. Nd3 {[%emt 0:02:40]} Bxf4 {[%emt 0:03:43]} 27. Qxf4 {[%emt 0:00:54]} Nf6 {[%emt 0:01:15]} 28. Ne5 {[%emt 0:01:46]} Rac7 {[%emt 0:01:56]} 29. Rc5 {[%emt 0:02:50]} Ne8 {[%emt 0:04:51]} 30. Nc4 {[%emt 0:01:43]} Ra7 {[%emt 0:01:55]} 31. Qe5 {[%emt 0:05:14]} Qb8 {[%emt 0:01:41]} 32. Qxb8 {[%emt 0:04:51]} Rxb8 {[%emt 0:00:08]} 33. Rxc6 {[%emt 0:00:50]} Rd8 {[%emt 0:03:07]} 34. f3 {[%emt 0:06:27]} Rad7 {[%emt 0:01:14]} 35. b3 {[%emt 0:01:56]} Rxd4 {[%emt 0:01:59]} 36. Rxd4 {[%emt 0:00:08]} Rxd4 {[%emt 0:00:07]} 37. Nxa5 {[%emt 0:01:40]} Kf8 {[%emt 0:01:50]} 38. Rb6 {[%emt 0:01:08]} Nc7 {[%emt 0:03:22]} 39. Rb8+ {[%emt 0:00:15]} Ne8 {[%emt 0:00:38]} 40. Nc6 {[%emt 0:00:00]} Rd6 {[%emt 0:00:00]} 41. Nxb4 {[%emt 0:04:17]} Ke7 {[%emt 0:01:15]} 42. Rb7+ {[%emt 0:02:22]} Kd8 {[%emt 0:01:40]} 43. a5 {[%emt 0:02:52]} Nc7 {[%emt 0:01:34]} 44. Rb8+ {[%emt 0:01:48]} Kd7 {[%emt 0:00:31]} 45. Kf2 {[%emt 0:01:26]} Rd4 {[%emt 0:01:35]} 46. a6 {[%emt 0:01:05]} Rd1 {[%emt 0:00:59]} 47. Ke2 {[%emt 0:04:06]} Ra1 {[%emt 0:00:57]} 48. Kd2 {[%emt 0:01:13]} Kd6 {[%emt 0:03:25]} 49. Kc3 {[%emt 0:01:32]} Kc5 {[%emt 0:01:20]} 50. Kb2 {[%emt 0:02:52]} Ra5 {[%emt 0:01:31]} 51. Rb7 {[%emt 0:03:48]} Kd6 {[%emt 0:02:42]} 52. Rb6+ {[%emt 0:01:38]} Kd7 {[%emt 0:01:46]} 53. Nc6 {[%emt 0:01:41]} Rb5 {[%emt 0:03:34]} 54. Rxb5 {[%emt 0:00:51]} Nxb5 {[%emt 0:00:12]} 55. a7 {[%emt 0:00:15]} Nc7 {[%emt 0:00:09]} 56. Nb8+ {[%emt 0:00:12]} Kc8 {[%emt 0:00:17]} 57. Na6 {[%emt 0:01:16]} Na8 {[%emt 0:00:23]} 58. Nc5 {[%emt 0:00:33]} Kc7 {[%emt 0:00:23]} 59. Kc3 {[%emt 0:01:10]} e5 {[%emt 0:05:09]} 60. Kc4 {[%emt 0:03:33]} Kc6 {[%emt 0:02:20]} 61. Na4 {[%emt 0:01:24]} Nc7 {[%emt 0:01:28]} 62. b4 {[%emt 0:00:23]} Kb7 {[%emt 0:00:45]} 63. b5 {[%emt 0:00:08]} Na8 {[%emt 0:00:29]} 64. b6 1-0